bitfinex/quotes_BTCUSD_20220204
["timestamp","ask_amount","ask_price","bid_price","bid_amount"]
[1644011704625,0.123162,40615.0,40612.0,0.00081304]
[1644011704830,0.061578,40615.0,40612.0,0.00081304]
[1644011705224,0.061578,40615.0,40609.0,0.2105383]
[1644011705426,0.061578,40615.0,40611.0,0.06238842]
[1644011706124,0.061578,40615.0,40611.0,0.22788624]
[1644011706325,0.06142713,40615.0,40611.0,0.22707319]
[1644011706525,0.06142713,40615.0,40611.0,0.22788624]
[1644011707428,0.06142713,40615.0,40611.0,0.43842454]
[1644011707626,0.06142713,40615.0,40611.0,0.22707319]
[1644011707824,0.06142713,40615.0,40611.0,0.22788624]
[1644011708277,0.06142713,40615.0,40612.0,0.2105383]
[1644011708478,0.24740475,40614.0,40612.0,0.2605383]
[1644011708675,0.24740475,40614.0,40612.0,0.05]
[1644011711686,0.24740475,40614.0,40611.0,0.38842454]
[1644011711933,0.61041908,40614.0,40611.0,0.06238842]
[1644011712432,0.61041908,40614.0,40611.0,0.06157537]
[1644011713031,0.61041908,40614.0,40611.0,0.18799749]
[1644011713433,0.61041908,40614.0,40611.0,0.06157537]
[1644011714434,0.61041908,40614.0,40611.0,0.19262661]
[1644011714633,0.06142713,40615.0,40611.0,0.19262661]
[1644011716286,0.06142713,40615.0,40611.0,0.19343966]
[1644011717285,0.06142713,40615.0,40611.0,0.19262661]
[1644011717484,0.06142713,40615.0,40611.0,0.19343966]
[1644011718485,0.06142713,40615.0,40611.0,0.19262661]
[1644011718686,0.06142713,40615.0,40611.0,0.19343966]
[1644011718885,0.06142713,40615.0,40611.0,0.06238842]
[1644011720034,0.06142713,40615.0,40612.0,0.19090418]
[1644011720235,0.06142713,40615.0,40612.0,0.14047318]
[1644011720636,0.06142713,40615.0,40611.0,0.06238842]
[1644011720836,0.06142713,40615.0,40611.0,0.06157537]
[1644011721036,0.06142713,40615.0,40611.0,0.06238842]
[1644011721834,0.06142713,40615.0,40611.0,0.21195541]
[1644011722036,0.06142713,40615.0,40613.0,0.05]
[1644011722236,0.06142713,40615.0,40613.0,0.11156968]
[1644011726488,0.06142713,40615.0,40613.0,0.17314368]
[1644011728839,0.06142713,40615.0,40613.0,0.12314368]
[1644011729037,0.06142713,40615.0,40613.0,0.17314368]
[1644011733087,0.06142713,40615.0,40613.0,0.14314368]
[1644011734086,0.06142713,40615.0,40613.0,0.13814368]
[1644011739587,0.06142713,40615.0,40613.0,0.47194668]
[1644011743640,0.06142713,40615.0,40613.0,0.13814368]
[1644011744742,0.27877639,40619.0,40614.0,0.06157412]
[1644011745142,0.40192339,40619.0,40614.0,0.06157412]
[1644011745889,0.40192339,40619.0,40614.0,0.22072159]
[1644011746992,0.40192339,40619.0,40615.0,0.46422479]
[1644011750541,0.27877639,40619.0,40618.0,0.06157412]
[1644011756849,0.27877639,40619.0,40617.0,0.12314824]
[1644011763389,0.27877639,40619.0,40617.0,0.18472163]
[1644011765045,0.27877639,40619.0,40617.0,0.06157339]
[1644011768184,0.27877639,40619.0,40617.0,0.06145925]
[1644011768590,0.64881545,40619.0,40617.0,0.06145925]
[1644011768789,0.64881545,40619.0,40612.0,0.14407045]
[1644011768790,0.64881545,40619.0,40612.0,0.08250204]
[1644011768989,0.64881545,40619.0,40613.0,0.00077089]
[1644011768990,0.37014615,40616.0,40613.0,0.00077089]
[1644011769190,0.13741984,40618.0,40613.0,0.00077089]
[1644011769191,1.4,40614.0,40613.0,0.00077089]
[1644011769387,1.4494,40614.0,40613.0,0.00077089]
[1644011769587,1.81954615,40614.0,40613.0,0.00077089]
[1644011769792,2.38672519,40614.0,40613.0,0.00077089]
[1644011769987,2.38672519,40614.0,40612.0,0.02165951]
[1644011770186,2.13975704,40614.0,40612.0,0.02165951]
[1644011770387,0.16921907,40613.0,40612.0,0.02165951]
[1644011770587,0.21861907,40613.0,40612.0,0.02165951]
[1644011770887,0.94048261,40612.0,40611.0,0.00098026]
[1644011771089,0.98988261,40612.0,40611.0,0.00077088]
[1644011771289,0.061589,40611.0,40608.0,0.00020938]
[1644011771488,0.8994,40610.0,40609.0,0.00077091]
[1644011771852,0.0494,40610.0,40609.0,0.00077091]
[1644011772449,0.0494,40610.0,40608.0,0.00020938]
[1644011772647,0.0494,40610.0,40607.0,0.02136177]
[1644011773548,0.0494,40610.0,40607.0,0.00098031]
[1644011773848,0.0494,40610.0,40607.0,0.00020938]
[1644011774048,0.06159,40609.0,40606.0,0.05077094]
[1644011774249,0.11099,40609.0,40606.0,0.05077094]
[1644011774849,0.11099,40609.0,40606.0,0.05]
[1644011775250,0.1108727,40609.0,40606.0,0.05020938]
[1644011776089,0.0494,40609.0,40606.0,0.05020938]
[1644011776390,0.0494,40609.0,40606.0,0.05]
[1644011776589,0.0494,40609.0,40606.0,0.05020938]
[1644011777390,0.0494,40609.0,40606.0,0.05]
[1644011777593,0.0494,40609.0,40606.0,0.05020938]
[1644011778592,0.0494,40609.0,40606.0,0.05]
[1644011778791,0.0494,40609.0,40608.0,0.00273765]
[1644011783901,1.4494,40609.0,40607.0,0.00020938]
[1644011784099,1.4494,40609.0,40606.0,0.00072324]
[1644011784102,0.061605,40608.0,40606.0,0.00072324]
[1644011784300,1.4494,40607.0,40606.0,0.00072324]
[1644011784501,1.4494,40607.0,40604.0,0.00020938]
[1644011784502,1.80739197,40607.0,40604.0,0.00020938]
[1644011784698,1.976643,40607.0,40605.0,0.00072325]
[1644011784899,1.56925103,40606.0,40605.0,0.00072325]
[1644011785100,1.4494,40606.0,40605.0,0.00072325]
[1644011785299,1.61866221,40606.0,40605.0,0.00072325]
[1644011785606,1.61866221,40606.0,40591.0,0.02]
[1644011785607,0.36792491,40594.0,40591.0,0.02]
[1644011785802,0.32838214,40592.0,40591.0,0.02]
[1644011786941,0.32838214,40592.0,40586.0,0.0002109]
[1644011787241,0.0494,40591.0,40585.0,0.32138299]
[1644011787840,0.27315215,40591.0,40585.0,0.32138299]
[1644011788344,0.27315215,40591.0,40586.0,0.00081204]
[1644011788540,0.27315215,40591.0,40586.0,0.00102294]
[1644011789042,1.17467004,40587.0,40586.0,0.00102294]
[1644011789242,1.22407004,40587.0,40583.0,0.0002109]
[1644011789546,1.22407004,40587.0,40586.0,0.00081203]
[1644011789547,0.0494,40587.0,40586.0,0.00081203]
[1644011790444,0.34494575,40584.0,40582.0,0.0002109]
[1644011790706,0.0494,40583.0,40581.0,0.0202109]
[1644011790997,0.0494,40583.0,40581.0,0.04131539]
[1644011791800,0.2819863,40582.0,40581.0,0.04131539]
[1644011792198,0.061634,40582.0,40581.0,0.04131539]
[1644011792699,0.2815827,40582.0,40581.0,0.04131539]
[1644011793098,0.061634,40582.0,40581.0,0.02]
[1644011793302,0.28357594,40582.0,40581.0,0.02]
[1644011793599,0.33297594,40582.0,40581.0,0.02]
[1644011795341,0.111034,40582.0,40581.0,0.02]
[1644011796343,0.33627563,40582.0,40581.0,0.02]
[1644011797042,0.58627563,40582.0,40581.0,0.02]
[1644011797644,0.98627563,40582.0,40581.0,0.02]
[1644011798492,0.58627563,40582.0,40581.0,0.02]
[1644011799691,0.361034,40582.0,40581.0,0.02]
[1644011800091,0.5802204,40582.0,40581.0,0.02]
[1644011800393,0.5802204,40582.0,40579.0,0.00081163]
[1644011800394,1.461646,40581.0,40579.0,0.00081163]
[1644011800592,1.74401086,40580.0,40579.0,0.00081163]
[1644011800793,2.36101086,40580.0,40579.0,0.00081163]
[1644011801193,2.36101086,40580.0,40577.0,0.0002109]
[1644011801395,0.061649,40579.0,40577.0,0.00081166]
[1644011801594,1.2494,40578.0,40577.0,0.00102256]
[1644011801848,1.48074546,40578.0,40577.0,0.00081166]
[1644011802439,1.48074546,40578.0,40576.0,0.01972406]
[1644011802641,1.40561369,40577.0,40576.0,0.01951316]
[1644011802840,0.31262994,40572.0,40571.0,0.00412574]
[1644011804040,0.31262994,40572.0,40565.0,0.41762574]
[1644011804241,0.0494,40571.0,40565.0,0.41762574]
[1644011804541,0.26784164,40571.0,40565.0,0.36762574]
[1644011804940,0.26876268,40571.0,40565.0,0.36762574]
[1644011805141,0.26876268,40571.0,40566.0,0.00045394]
[1644011805698,0.42579087,40570.0,40566.0,0.00045394]
[1644011805897,0.0494,40569.0,40566.0,0.00045394]
[1644011806097,0.0494,40569.0,40565.0,0.36762574]
[1644011806399,0.0494,40569.0,40564.0,0.01865282]
[1644011806798,0.36457992,40565.0,40564.0,0.01865282]
[1644011806999,0.37931022,40568.0,40564.0,0.01865282]
[1644011807196,0.37931022,40568.0,40563.0,0.4463924]
[1644011807197,0.0494,40567.0,40563.0,0.4463924]
[1644011807997,0.27343201,40567.0,40563.0,0.4463924]
[1644011808196,0.25,40565.0,40563.0,0.4463924]
[1644011808397,0.0494,40564.0,40563.0,0.4463924]
[1644011808599,0.0494,40564.0,40561.0,0.02]
[1644011809098,0.0494,40564.0,40562.0,0.13496059]
[1644011809350,0.0494,40564.0,40561.0,0.02]
[1644011810341,0.0494,40564.0,40562.0,0.15905482]
[1644011810542,0.0494,40564.0,40561.0,0.02]
[1644011811648,0.0494,40564.0,40561.0,0.43319645]
[1644011814894,0.0494,40564.0,40560.0,0.13554052]
[1644011815897,0.3158763,40568.0,40562.0,0.05]
[1644011815898,0.10073828,40568.0,40562.0,0.05]
[1644011816097,0.15013828,40568.0,40562.0,0.05]
[1644011816945,0.15013828,40568.0,40561.0,0.33305569]
[1644011817343,0.15013828,40568.0,40564.0,0.05]
[1644011817541,0.15013828,40568.0,40560.0,0.18554052]
[1644011818142,0.15013828,40568.0,40560.0,0.13554052]
[1644011818542,0.15013828,40568.0,40560.0,0.47010413]
[1644011818743,0.15013828,40568.0,40564.0,0.05]
[1644011819144,0.15013828,40568.0,40561.0,0.00021008]
[1644011819345,0.5095,40574.0,40560.0,0.52010413]
[1644011819551,0.26379096,40589.0,40574.0,1.4]
[1644011819749,0.26379096,40590.0,40576.0,0.14701617]
[1644011820046,0.26379096,40590.0,40575.0,0.56474816]
[1644011820047,0.01282515,40589.0,40583.0,0.14701617]
[1644011820249,0.001,40599.0,40583.0,0.14701617]
[1644011820250,0.001,40599.0,40589.0,0.617]
[1644011820446,0.001,40599.0,40584.0,0.56474816]
[1644011820447,0.001,40599.0,40594.0,0.617]
[1644011820706,0.001,40599.0,40596.0,0.46244069]
[1644011820903,0.001,40599.0,40597.0,0.567939]
[1644011821101,0.001,40599.0,40598.0,1.733803]
[1644011821302,0.001,40599.0,40598.0,2.400203]
[1644011821503,0.001,40599.0,40598.0,2.395203]
[1644011821701,0.001,40599.0,40598.0,2.545203]
[1644011822305,0.002,40605.0,40600.0,0.333803]
[1644011822504,0.001,40607.0,40602.0,1.074012]
[1644011822703,0.001,40607.0,40606.0,1.917]
[1644011822902,0.001,40607.0,40606.0,1.150288]
[1644011823102,0.00181128,40607.0,40606.0,1.150288]
[1644011823302,0.00181128,40607.0,40606.0,1.52521605]
[1644011824103,0.001,40607.0,40606.0,1.57521605]
[1644011824547,0.001,40607.0,40606.0,1.19132805]
[1644011824850,0.001,40607.0,40606.0,1.52521605]
[1644011828299,0.001,40607.0,40606.0,0.90821605]
[1644011829098,0.001,40607.0,40606.0,0.57432805]
[1644011829298,0.001,40607.0,40606.0,0.52432805]
[1644011829500,0.001,40607.0,40606.0,0.0494]
[1644011830103,0.006024,40607.0,40606.0,0.0494]
[1644011830304,0.006024,40607.0,40594.0,0.2682069]
[1644011830305,0.256024,40607.0,40594.0,0.2682069]
[1644011830501,0.05,40600.0,40598.0,0.36728384]
[1644011830702,0.05,40600.0,40599.0,0.333888]
[1644011830902,0.251,40607.0,40598.0,0.36728384]
[1644011831202,0.05,40603.0,40598.0,0.36728384]
[1644011831504,0.13869024,40600.0,40598.0,0.36728384]
[1644011832145,0.05,40599.0,40594.0,0.2499096]
[1644011832349,0.05,40599.0,40594.0,0.05]
[1644011832546,0.05,40599.0,40594.0,0.22557383]
[1644011832751,0.05077024,40599.0,40593.0,0.05]
[1644011832948,0.05077024,40599.0,40594.0,0.22479897]
[1644011833148,0.05077024,40599.0,40596.0,0.40321273]
[1644011833547,0.05077024,40599.0,40596.0,0.45321273]
[1644011833748,0.05,40599.0,40596.0,0.45321273]
[1644011834347,0.05,40599.0,40592.0,0.22799304]
[1644011834749,0.05,40597.0,40591.0,0.3933]
[1644011835051,0.28478502,40605.0,40591.0,0.3933]
[1644011835052,0.05,40593.0,40591.0,0.3933]
[1644011835247,0.05,40593.0,40586.0,0.00021008]
[1644011835453,0.05,40593.0,40587.0,0.38085678]
[1644011835892,0.17162475,40593.0,40587.0,0.38085678]
[1644011836491,0.00076978,40592.0,40587.0,0.38085678]
[1644011836991,0.00076978,40592.0,40587.0,0.43085678]
[1644011837393,0.17162475,40593.0,40587.0,0.43085678]
[1644011837594,0.00076978,40592.0,40587.0,0.43085678]
[1644011838192,0.00076978,40592.0,40585.0,0.00021008]
[1644011838391,0.00076978,40592.0,40584.0,0.28485574]
[1644011838591,0.17162475,40593.0,40584.0,0.28485574]
[1644011838793,0.05,40590.0,40584.0,0.28485574]
[1644011839443,0.00076979,40591.0,40583.0,0.00021008]
[1644011839444,0.13255013,40586.0,40583.0,0.00021008]
[1644011839645,0.33746339,40588.0,40582.0,0.00021008]
[1644011839944,0.00076992,40587.0,40583.0,0.333888]
[1644011840143,0.00076992,40587.0,40584.0,0.22598702]
[1644011840342,0.00076992,40587.0,40585.0,0.333888]
[1644011840546,0.00076992,40587.0,40585.0,0.383888]
[1644011840742,0.00037616,40587.0,40586.0,1.233888]
[1644011840943,0.05,40592.0,40586.0,1.233888]
[1644011841143,0.25,40587.0,40585.0,0.15021008]
[1644011841343,0.25,40587.0,40586.0,0.333888]
[1644011844417,0.25,40587.0,40583.0,0.05021008]
[1644011844418,0.3,40587.0,40583.0,0.05021008]
[1644011844620,0.25,40587.0,40582.0,0.00021008]
[1644011844819,0.16858908,40583.0,40581.0,0.44296648]
[1644011845017,0.16858908,40583.0,40581.0,0.4427564]
[1644011845621,0.16858908,40583.0,40578.0,0.00021008]
[1644011845824,0.59566175,40587.0,40582.0,0.05]
[1644011845825,0.19991313,40587.0,40582.0,0.05]
[1644011847270,0.1548057,40584.0,40582.0,0.05]
[1644011847467,0.1548057,40584.0,40581.0,0.05021008]
[1644011847668,0.1548057,40584.0,40581.0,0.05]
[1644011847868,0.1548057,40584.0,40581.0,0.05021008]
[1644011848268,0.19991313,40587.0,40581.0,0.05021008]
[1644011848472,0.19991313,40587.0,40584.0,0.05]
[1644011849269,0.12094192,40586.0,40584.0,0.05]
[1644011850470,0.12094192,40586.0,40583.0,0.05]
[1644011852696,0.10097692,40586.0,40583.0,0.05]
[1644011853497,0.35097692,40586.0,40583.0,0.05]
[1644011853700,0.35097692,40586.0,40581.0,0.00020998]
[1644011853900,0.35097692,40586.0,40580.0,0.15020998]
[1644011853901,0.005024,40585.0,40580.0,0.15020998]
[1644011854348,0.005024,40585.0,40580.0,0.10020998]
[1644011856845,0.005024,40585.0,40580.0,0.00020998]
[1644011857046,0.15599542,40579.0,40572.0,0.00392189]
[1644011858801,0.07090985,40580.0,40572.0,0.00392189]
[1644011858998,0.07090985,40580.0,40575.0,0.44114175]
[1644011859200,0.07090985,40580.0,40575.0,0.49114175]
[1644011859400,0.07090985,40580.0,40575.0,0.59114175]
[1644011860001,0.22067129,40580.0,40575.0,0.59114175]
[1644011860700,0.07090985,40580.0,40575.0,0.59114175]
[1644011861308,0.05,40580.0,40575.0,0.59114175]
[1644011861849,0.2072355,40580.0,40575.0,0.59114175]
[1644011862444,0.2072355,40580.0,40575.0,0.64114175]
[1644011862844,0.2072355,40580.0,40576.0,0.0509]
[1644011864949,0.63041555,40580.0,40576.0,0.0509]
[1644011865601,0.2072355,40580.0,40576.0,0.0509]
[1644011866804,0.05,40580.0,40576.0,0.0509]
[1644011867803,0.16130438,40577.0,40576.0,0.0509]
[1644011868201,0.21130438,40577.0,40576.0,0.0509]
[1644011868401,0.21130438,40577.0,40570.0,0.00081183]
[1644011868603,0.21130438,40577.0,40572.0,0.36484594]
[1644011868802,0.21130438,40577.0,40572.0,0.56484594]
[1644011869444,0.55077437,40577.0,40572.0,0.36484594]
[1644011869644,0.55077437,40577.0,40570.0,0.56243622]
[1644011869846,0.55077437,40577.0,40570.0,0.5616244]
[1644011870044,0.55077437,40577.0,40570.0,0.5624362]
[1644011871047,0.55077437,40577.0,40570.0,0.6116244]
[1644011871246,0.55077437,40577.0,40570.0,0.21243619]
[1644011871448,0.55077437,40577.0,40570.0,0.11243619]
[1644011871650,0.55077437,40577.0,40570.0,0.06243619]
[1644011871848,0.55077437,40577.0,40571.0,0.05]
[1644011872347,0.55077437,40577.0,40570.0,0.0624362]
[1644011872646,0.55077437,40577.0,40571.0,0.05]
[1644011872847,0.55077437,40577.0,40571.0,0.0002095]
[1644011873293,0.55077437,40577.0,40570.0,0.0618339]
[1644011873493,0.55077437,40577.0,40570.0,0.1125512]
[1644011874496,0.55077437,40577.0,40570.0,0.1118339]
[1644011874696,0.55077437,40577.0,40570.0,0.1125512]
[1644011874898,0.05,40571.0,40570.0,0.1125512]
[1644011875097,0.16130438,40577.0,40571.0,1.4]
[1644011875297,0.01890202,40583.0,40571.0,0.15]
[1644011875498,0.25,40577.0,40572.0,0.0002095]
[1644011875698,0.25,40577.0,40571.0,0.1502095]
[1644011875897,0.01890202,40583.0,40572.0,1.3]
[1644011876099,0.45447686,40584.0,40576.0,0.33455764]
[1644011876299,0.11771368,40578.0,40576.0,0.33455764]
[1644011876498,0.11771368,40578.0,40576.0,0.05]
[1644011876698,0.11771368,40578.0,40572.0,0.0002095]
[1644011876948,0.11771368,40578.0,40571.0,0.1502095]
[1644011877445,0.11771368,40578.0,40571.0,0.0502095]
[1644011877643,0.11771368,40578.0,40571.0,0.44862794]
[1644011877843,0.11771368,40578.0,40571.0,0.54862794]
[1644011878743,0.11771368,40578.0,40571.0,0.43862794]
[1644011879343,0.11771368,40578.0,40571.0,0.53862794]
[1644011880346,0.11771368,40578.0,40573.0,0.05]
[1644011880598,0.24476621,40583.0,40573.0,0.05]
[1644011880800,0.24476621,40583.0,40573.0,0.0502095]
[1644011881499,0.13528273,40579.0,40573.0,0.0502095]
[1644011882105,0.13528273,40579.0,40573.0,0.05]
[1644011882399,0.13528273,40579.0,40573.0,0.0502095]
[1644011884349,0.13528273,40579.0,40573.0,0.05]
[1644011884550,0.13528273,40579.0,40573.0,0.0502095]
[1644011884952,0.13528273,40579.0,40573.0,0.05]
[1644011885155,0.08401244,40570.0,40565.0,0.31592852]
[1644011885353,1.6483576,40578.0,40552.0,0.01877828]
[1644011885354,0.07614401,40569.0,40562.0,0.06901437]
[1644011885555,0.05,40564.0,40562.0,0.01901437]
[1644011886154,0.43807533,40563.0,40562.0,0.01901437]
[1644011886353,0.44309933,40563.0,40562.0,0.01901437]
[1644011887358,0.44309933,40563.0,40555.0,0.31614334]
[1644011887553,0.12288888,40558.0,40555.0,0.36614334]
[1644011887753,0.12288888,40558.0,40556.0,0.333888]
[1644011888595,0.12288888,40558.0,40554.0,0.31614334]
[1644011888796,0.12288888,40558.0,40555.0,0.333888]
[1644011889197,0.12288888,40558.0,40555.0,0.433888]
[1644011889797,0.12288888,40558.0,40556.0,0.333888]
[1644011890199,0.12288888,40558.0,40556.0,0.433888]
[1644011890601,0.12288888,40558.0,40556.0,0.1]
[1644011891200,0.05,40560.0,40556.0,0.1]
[1644011891403,0.05,40560.0,40555.0,0.1]
[1644011891852,0.05,40560.0,40555.0,0.05]
[1644011892047,0.05,40560.0,40552.0,0.51614334]
[1644011892248,0.17513927,40560.0,40553.0,0.333888]
[1644011892654,0.17513927,40560.0,40553.0,0.433888]
[1644011893449,0.17513927,40560.0,40556.0,0.08]
[1644011893649,0.17513927,40560.0,40557.0,0.08]
[1644011895049,0.43807533,40563.0,40560.0,0.00271095]
[1644011895253,0.43807533,40563.0,40557.0,0.08]
[1644011895254,0.43807533,40563.0,40562.0,0.08]
[1644011895453,0.44309933,40563.0,40562.0,0.08]
[1644011896297,0.57997882,40563.0,40562.0,0.08]
[1644011898201,0.82997882,40563.0,40562.0,0.08]
[1644011904610,0.14613476,40580.0,40566.0,0.08]
[1644011904810,0.32233618,40584.0,40580.0,0.2]
[1644011905011,0.01,40595.0,40579.0,0.05]
[1644011905012,0.01665425,40598.0,40592.0,0.15]
[1644011905209,0.002,40600.0,40586.0,1.48]
[1644011905210,0.002,40600.0,40597.0,1.864199]
[1644011905416,0.0016,40607.0,40601.0,0.08]
[1644011905417,0.26414216,40602.0,40601.0,0.08]
[1644011905611,0.022,40609.0,40603.0,0.414199]
[1644011905812,0.0013585,40615.0,40603.0,0.414199]
[1644011905813,0.003,40622.0,40612.0,1.4]
[1644011906010,0.2697,40631.0,40618.0,0.141546]
[1644011906209,0.2697,40631.0,40624.0,0.414199]
[1644011906409,0.2697,40631.0,40627.0,0.08]
[1644011906410,0.16042923,40631.0,40627.0,0.08]
[1644011906611,0.00301955,40636.0,40631.0,0.08]
[1644011906865,0.00301955,40636.0,40635.0,0.82513985]
[1644011907064,0.2507076,40648.0,40639.0,0.08]
[1644011907264,0.2507076,40648.0,40638.0,1.4]
[1644011907265,0.2507076,40648.0,40647.0,2.480199]
[1644011907460,0.2507076,40648.0,40647.0,1.130199]
[1644011907461,0.0383336,40648.0,40647.0,1.130199]
[1644011907664,0.02,40649.0,40648.0,1.48]
[1644011907864,0.001,40654.0,40653.0,1.48]
[1644011908063,0.02445308,40659.0,40654.0,0.413199]
[1644011908261,0.02445308,40659.0,40654.0,0.463199]
[1644011908459,0.02445308,40659.0,40654.0,0.612599]
[1644011908460,0.00036251,40656.0,40654.0,0.612599]
[1644011908660,0.03107114,40655.0,40654.0,0.412599]
[1644011908860,0.03107114,40655.0,40654.0,0.2284]
[1644011909060,0.00107114,40655.0,40654.0,0.1284]
[1644011909263,0.00107114,40655.0,40654.0,0.079]
[1644011909464,0.15788043,40655.0,40654.0,0.079]
[1644011909662,1.55113614,40655.0,40654.0,0.07010001]
[1644011909863,0.00107114,40655.0,40654.0,0.07010001]
[1644011910261,1.40107114,40655.0,40654.0,0.06910001]
[1644011910461,1.55113614,40655.0,40654.0,0.06910001]
[1644011910718,0.15113614,40655.0,40654.0,0.06910001]
[1644011910912,0.00107114,40655.0,40654.0,0.06910001]
[1644011911213,0.00107114,40655.0,40638.0,0.0494]
[1644011911214,1.00781543,40655.0,40638.0,0.0494]
[1644011911421,0.051,40650.0,40645.0,0.19734811]
[1644011911614,1.451065,40646.0,40640.0,0.5]
[1644011911812,0.001,40641.0,40634.0,0.19734811]
[1644011912015,0.001,40635.0,40634.0,0.19734811]
[1644011912215,0.11656928,40635.0,40633.0,0.5]
[1644011912613,0.11656928,40635.0,40624.0,0.33347]
[1644011912814,0.001,40627.0,40624.0,0.33347]
[1644011913114,0.001,40627.0,40626.0,0.33347]
[1644011914114,0.001,40627.0,40626.0,0.48347]
[1644011914955,0.001,40627.0,40626.0,0.47347]
[1644011915255,0.001,40627.0,40626.0,0.14]
[1644011915457,0.001,40627.0,40626.0,0.04]
[1644011915657,0.001,40627.0,40626.0,0.33347]
[1644011915860,0.001,40627.0,40626.0,0.43347]
[1644011916057,0.001,40627.0,40625.0,0.002]
[1644011916659,0.150065,40626.0,40625.0,0.002]
[1644011917860,0.150065,40626.0,40625.0,0.00026]
[1644011918917,0.00076814,40628.0,40625.0,1.40026]
[1644011919117,0.02064737,40630.0,40626.0,0.79070999]
[1644011919318,0.02064737,40630.0,40628.0,0.049]
[1644011919618,0.01814682,40630.0,40629.0,0.59336188]
[1644011919817,0.01814682,40630.0,40629.0,0.432679]
[1644011920017,0.00126888,40634.0,40629.0,0.433679]
[1644011920219,0.42656648,40636.0,40630.0,0.333679]
[1644011920418,0.0007699,40632.0,40629.0,0.11814682]
[1644011920617,0.07183688,40634.0,40629.0,0.11814682]
[1644011920818,0.42656648,40636.0,40629.0,0.11814682]
[1644011921021,0.1502547,40633.0,40629.0,0.11814682]
[1644011921218,0.090546,40632.0,40629.0,0.11814682]
[1644011921419,0.090546,40632.0,40629.0,0.01814682]
[1644011921863,0.15061311,40633.0,40629.0,0.01814682]
[1644011922254,0.00035841,40635.0,40629.0,0.01814682]
[1644011922556,0.25035841,40636.0,40629.0,0.01814682]
[1644011922755,0.0494,40648.0,40630.0,1.4]
[1644011922956,0.00032524,40634.0,40632.0,0.333679]
[1644011923254,0.00032524,40634.0,40633.0,0.58315775]
[1644011923455,0.00032524,40634.0,40633.0,0.68315775]
[1644011923658,0.00032524,40634.0,40633.0,0.66543149]
[1644011923854,0.42742403,40635.0,40633.0,0.433679]
[1644011924054,0.42742403,40635.0,40633.0,0.1]
[1644011924254,0.42742403,40635.0,40633.0,0.20468083]
[1644011924654,0.42742403,40635.0,40633.0,0.10468083]
[1644011926905,0.20837861,40626.0,40620.0,0.173077]
[1644011927206,0.20837861,40626.0,40613.0,0.4287]
[1644011927207,0.04708828,40625.0,40613.0,0.4287]
[1644011927505,0.04708828,40625.0,40614.0,0.333679]
[1644011927704,0.04708828,40625.0,40617.0,0.05]
[1644011927904,0.04744677,40625.0,40617.0,0.05]
[1644011928105,0.00035849,40625.0,40617.0,0.05]
[1644011928303,0.4804207,40626.0,40617.0,0.05]
[1644011928304,0.5298207,40626.0,40617.0,0.05]
[1644011928503,0.5298207,40626.0,40622.0,0.05]
[1644011928504,0.00035849,40625.0,40622.0,0.05]
[1644011928709,0.27839239,40639.0,40623.0,1.4]
[1644011928910,0.00031767,40634.0,40627.0,0.05]
[1644011929363,0.00031767,40634.0,40632.0,0.333679]
[1644011929555,0.00031767,40634.0,40631.0,0.05]
[1644011929857,0.36010616,40640.0,40632.0,0.05]
[1644011930054,0.00031962,40635.0,40632.0,0.05]
[1644011930660,0.00031962,40635.0,40633.0,0.333679]
[1644011930860,0.00031962,40635.0,40634.0,1.733679]
[1644011931058,0.02127088,40642.0,40635.0,0.333679]
[1644011931256,0.02127088,40642.0,40637.0,0.333679]
[1644011931463,0.01841859,40640.0,40637.0,0.333679]
[1644011931657,0.01841859,40640.0,40637.0,0.15]
[1644011932055,0.01341859,40640.0,40637.0,0.15]
[1644011932457,0.26341859,40640.0,40637.0,0.15]
[1644011932662,0.14274081,40640.0,40637.0,0.2]
[1644011932858,0.01764335,40640.0,40639.0,0.01341859]
[1644011933304,0.10818935,40640.0,40639.0,0.01341859]
[1644011933505,0.01764335,40640.0,40639.0,0.01341859]
[1644011933918,0.01764335,40640.0,40639.0,0.34709759]
[1644011934112,0.01764335,40640.0,40639.0,0.60458955]
[1644011934304,0.01764335,40640.0,40639.0,1.11953582]
[1644011934503,0.00033925,40642.0,40641.0,1.733679]
[1644011934704,0.16118654,40655.0,40641.0,0.483079]
[1644011934905,0.00020299,40657.0,40652.0,0.05]
[1644011935108,3.38082025,40661.0,40652.0,0.05]
[1644011935304,3.38082025,40661.0,40645.0,0.0494]
[1644011935305,0.08588598,40659.0,40645.0,0.0494]
[1644011935505,0.08588598,40659.0,40642.0,0.25749196]
[1644011935906,0.14799485,40653.0,40642.0,0.25749196]
[1644011936105,0.14799485,40653.0,40643.0,0.0494]
[1644011936106,0.14879117,40653.0,40643.0,0.0494]
[1644011936305,0.14879117,40653.0,40645.0,1.7998096]
[1644011936306,0.00079632,40653.0,40645.0,1.7998096]
[1644011936504,0.00079632,40653.0,40650.0,0.05]
[1644011936708,0.00079632,40653.0,40645.0,1.7998096]
[1644011936709,0.00079632,40653.0,40652.0,0.383679]
[1644011936960,0.00079632,40653.0,40652.0,0.533679]
[1644011937160,0.002,40663.0,40652.0,0.15]
[1644011937362,0.002,40663.0,40652.0,0.1]
[1644011937363,0.0003393,40655.0,40652.0,0.1]
[1644011937562,0.0003393,40655.0,40646.0,0.5022]
[1644011937764,0.08804282,40655.0,40646.0,0.5022]
[1644011938162,0.08804282,40655.0,40640.0,0.01863146]
[1644011938163,0.09149222,40648.0,40640.0,0.01863146]
[1644011938366,0.34803796,40647.0,40640.0,0.01863146]
[1644011938562,0.090546,40643.0,40640.0,0.01863146]
[1644011938762,0.1429983,40643.0,40640.0,0.01863146]
[1644011938964,0.090546,40642.0,40640.0,0.01863146]
[1644011939762,0.14367459,40643.0,40635.0,0.05]
[1644011940063,0.00035979,40642.0,40635.0,0.05]
[1644011940263,0.1433148,40643.0,40635.0,0.05]
[1644011940264,0.14671582,40636.0,40635.0,0.05]
[1644011940464,0.08925179,40641.0,40632.0,0.05]
[1644011940705,0.00035979,40640.0,40632.0,0.05]
[1644011940906,0.00077387,40638.0,40632.0,0.05]
[1644011941108,0.00077387,40638.0,40633.0,0.333679]
[1644011941310,0.00077387,40638.0,40635.0,0.333679]
[1644011941506,0.00077387,40638.0,40633.0,0.2]